bitfinex/quotes_ETHUSD_20241119
["timestamp","ask_amount","ask_price","bid_price","bid_amount"]
[1732049170997,3.51870827,3105.1,3104.3,3.371219]
[1732049171147,1.30231322,3105.0,3104.3,3.371199]
[1732049171343,3.75736322,3104.9,3104.4,1.6106]
[1732049171543,0.53661322,3104.8,3104.4,1.6106]
[1732049171740,0.29813827,3104.7,3104.4,1.6106]
[1732049171979,0.23847495,3104.6,3104.4,1.6106]
[1732049172182,3.98632,3105.0,3104.5,1.61056]
[1732049172369,0.53681007,3104.9,3104.5,1.61056]
[1732049172584,0.53681007,3104.8,3104.5,1.61056]
[1732049172747,0.53681007,3104.7,3104.5,1.61056]
[1732049172944,0.23858225,3104.6,3104.3,3.371239]
[1732049173314,3.22051,3105.1,3104.3,1.760579]
[1732049173622,0.398621,3105.1,3104.6,1.61051]
[1732049174101,0.398621,3105.1,3104.7,1.61041]
[1732049174457,0.398621,3105.1,3104.6,1.6105]
[1732049174658,0.91854854,3105.0,3104.6,1.6105]
[1732049174972,0.91854854,3104.9,3104.6,1.61047]
[1732049175176,0.7657,3105.6,3104.8,0.294]
[1732049175380,0.91851327,3105.5,3104.8,0.294]
[1732049175688,0.5367934,3105.4,3105.1,1.6102]
[1732049175994,6.4397,3105.8,3105.1,3.2204]
[1732049176289,1.31721462,3105.7,3105.1,1.6102]
[1732049176596,1.31721462,3105.7,3104.8,0.294]
[1732049176597,0.53687893,3105.6,3105.5,1.61004]
[1732049176892,0.771,3106.3,3105.7,1.60994]
[1732049177088,0.91872522,3106.2,3105.5,0.294]
[1732049177251,3.21973,3105.9,3105.1,1.90421]
[1732049177447,0.53691762,3105.8,3105.1,1.90421]
[1732049177757,0.53691762,3105.7,3105.3,1.61011]
[1732049177987,3.22,3105.6,3105.1,1.90422]
[1732049178167,1.18219176,3105.6,3104.8,1.90439]
[1732049178378,3.22027,3105.4,3104.8,0.294]
[1732049178561,0.23871099,3105.3,3104.8,0.294]
[1732049178900,3.22045,3105.2,3104.7,1.61042]
[1732049179063,3.22045,3105.2,3104.5,0.294]
[1732049179064,3.22067,3105.0,3104.5,1.90452]
[1732049179269,3.22082,3104.8,3104.3,3.371239]
[1732049179479,4.671282,3105.0,3104.3,3.371239]
[1732049179675,7.24787,3105.0,3104.4,1.61059]
[1732049179949,3.22087,3104.8,3104.3,3.371219]
[1732049180151,3.22087,3104.8,3104.3,1.760579]
[1732049180373,3.22096,3104.7,3104.3,1.760579]
[1732049180688,3.22085,3104.8,3104.3,1.760579]
[1732049180993,3.22098,3104.7,3104.3,1.760579]
[1732049181296,0.8065,3105.0,3104.3,33.371199]
[1732049181446,0.53779624,3104.9,3104.4,1.61061]
[1732049181650,3.22087,3104.8,3104.3,31.760579]
[1732049181870,3.22095,3104.7,3104.3,31.760579]
[1732049182086,3.22079,3104.9,3104.3,33.371239]
[1732049182292,3.22079,3104.9,3104.4,1.6106]
[1732049182496,3.22076,3104.9,3104.4,1.61058]
[1732049183159,3.22054,3105.1,3104.5,1.61053]
[1732049183501,3.75847587,3105.0,3104.3,31.760579]
[1732049183650,0.29878104,3104.9,3104.4,3.22118]
[1732049183852,3.0,3105.2,3104.7,1.61042]
[1732049184093,0.23904296,3105.1,3104.9,1.61034]
[1732049184295,0.8209,3105.6,3105.0,1.6103]
[1732049184495,3.75806725,3105.5,3105.0,1.6103]
[1732049184658,0.53791725,3105.4,3105.0,1.6103]
[1732049184854,3.22015,3105.5,3105.0,1.6103]
[1732049185079,0.53793983,3105.4,3105.0,1.6103]
[1732049185301,3.22015,3105.5,3105.0,1.6103]
[1732049185789,0.29884709,3105.4,3105.0,1.6103]
[1732049185979,3.22015,3105.5,3105.0,1.6103]
[1732049186189,0.29883732,3105.4,3105.0,1.6103]
[1732049186379,3.22015,3105.5,3105.0,1.6103]
[1732049186583,0.29882433,3105.4,3105.0,1.6103]
[1732049186753,0.8209,3105.6,3105.0,1.6103]
[1732049186951,0.2988305,3105.5,3105.3,1.61013]
[1732049187191,1.13891119,3105.9,3105.4,1.61006]
[1732049187192,0.7564,3105.9,3105.4,1.61006]
[1732049187492,0.53789707,3105.8,3105.3,1.61012]
[1732049187667,7.19589,3105.9,3105.3,1.61012]
[1732049187862,3.75764689,3105.8,3105.3,1.61012]
[1732049188074,7.19588,3105.9,3105.4,1.61009]
[1732049188255,3.51869372,3105.8,3105.2,1.61015]
[1732049188456,0.7564,3105.9,3105.4,1.61006]
[1732049188764,0.29882026,3105.8,3105.7,1.60994]
[1732049189097,0.7564,3106.2,3105.8,1.60986]
[1732049189868,0.7564,3106.2,3105.4,0.294]
[1732049190196,3.6012647,3106.8,3106.3,1.60963]
[1732049190404,3.21923,3106.4,3105.9,1.60982]
[1732049190580,3.21899,3106.6,3105.9,1.60981]
[1732049190761,3.51760874,3106.5,3105.9,1.6098]
[1732049190994,3.21906,3106.5,3105.9,1.6098]
[1732049191300,3.21899,3106.6,3105.9,1.6098]
[1732049191505,3.540889,3106.6,3105.9,1.60979]
[1732049191689,3.21906,3106.5,3105.9,3.21958]
[1732049191997,0.321899,3106.6,3106.2,1.60964]
[1732049192199,3.21874,3106.8,3106.0,1.60974]
[1732049192518,3.5730879,3106.6,3106.0,3.21949]
[1732049192811,0.7564,3106.9,3105.8,0.294]
[1732049192812,7.19382,3106.9,3106.1,1.60973]
[1732049192971,1.475782,3106.9,3106.1,1.60973]
[1732049193174,3.21894,3106.7,3106.2,1.60965]
[1732049193401,3.97505,3106.9,3105.8,0.294]
[1732049193600,3.97505,3106.9,3106.4,1.60957]
[1732049193775,4.694402,3106.9,3106.3,0.294]
[1732049193969,3.21894,3106.7,3106.3,0.294]
[1732049194286,3.21874,3106.8,3105.9,0.294]
[1732049194483,3.21904,3106.6,3106.1,1.6097]
[1732049194718,3.21917,3106.4,3105.9,0.294]
[1732049194871,3.616284,3106.8,3106.2,1.60967]
[1732049195071,3.616284,3106.8,3106.3,1.60962]
[1732049195268,3.21858,3107.0,3106.4,1.60956]
[1732049195812,3.21858,3107.0,3106.5,0.294]
[1732049196017,3.21858,3107.0,3106.5,1.90352]
[1732049196289,3.940566,3107.0,3106.5,1.90352]
[1732049197094,0.721986,3107.0,3106.6,1.60944]
[1732049197293,4.00128,3107.2,3106.6,1.60944]
[1732049198120,3.21815,3107.4,3106.9,1.60931]
[1732049198510,0.8207,3107.5,3106.9,1.60931]
[1732049198711,4.03845,3107.8,3107.1,1.60918]
[1732049198943,3.21783,3107.7,3107.1,1.60918]
[1732049199240,0.725628,3107.6,3107.2,1.60916]
[1732049199448,0.725628,3107.6,3107.3,1.60908]
[1732049199642,3.21803,3107.5,3107.2,0.294]
[1732049199805,3.21787,3107.7,3107.2,0.294]
[1732049200013,0.725635,3107.6,3107.2,0.294]
[1732049200407,3.943575,3107.6,3107.2,0.294]
[1732049200666,0.725635,3107.6,3107.0,0.294]
[1732049200820,3.2184,3107.2,3106.6,1.90344]
[1732049201009,3.2184,3107.2,3106.3,0.294]
[1732049201010,3.21873,3106.9,3106.3,0.294]
[1732049201215,3.21873,3106.9,3106.3,1.90359]
[1732049201508,3.21874,3106.8,3106.3,1.90359]
[1732049201711,3.21873,3106.9,3106.3,1.90359]
[1732049201948,3.21888,3106.7,3106.3,0.294]
[1732049202157,0.321888,3106.6,3105.7,1.60989]
[1732049202311,0.321888,3106.6,3106.1,1.6097]
[1732049202508,6.4378,3106.7,3105.9,3.21961]
[1732049202509,3.21888,3106.7,3105.9,3.21961]
[1732049202854,4.36091,3107.2,3105.5,0.294]
[1732049202855,3.2197,3105.9,3105.5,0.294]
[1732049203064,3.2197,3105.9,3105.3,3.22021]
[1732049203354,3.21963,3106.0,3105.4,1.61006]
[1732049203514,3.21937,3106.2,3105.6,1.60999]
[1732049203720,3.21953,3106.1,3105.5,1.61004]
[1732049204060,0.321937,3106.1,3105.6,1.60999]
[1732049204272,3.21933,3106.3,3105.7,1.60991]
[1732049204558,4.03551,3106.6,3105.7,1.60991]
[1732049204559,3.21919,3106.4,3105.7,1.770901]
[1732049204715,3.21919,3106.4,3105.4,0.294]
[1732049204716,3.21919,3106.4,3105.8,1.60985]
[1732049204916,3.21919,3106.4,3105.8,3.2197]
[1732049205111,0.72547,3106.4,3106.0,1.60974]
[1732049205354,3.21901,3106.6,3106.1,1.6097]
[1732049205653,0.321901,3106.5,3106.1,1.6097]
[1732049205869,3.21896,3106.6,3106.1,1.6097]
[1732049206051,3.21896,3106.6,3106.0,1.90374]
[1732049206221,3.21875,3106.8,3106.1,1.60973]
[1732049206426,0.403415,3106.7,3106.1,1.60973]
[1732049206739,3.21875,3106.8,3106.0,0.294]
[1732049206740,3.21875,3106.8,3106.3,3.21921]
[1732049206952,4.03411,3106.9,3106.3,1.60962]
[1732049207125,0.403395,3106.8,3106.3,1.60962]
[1732049207666,3.21865,3106.9,3106.3,3.21921]
[1732049207831,3.21865,3106.9,3106.3,1.60959]
[1732049208171,3.21934,3106.3,3105.1,0.294]
[1732049208381,0.7708,3106.6,3105.2,1.61015]
[1732049208382,3.21905,3106.5,3105.2,1.61015]
[1732049208680,3.21953,3106.1,3105.4,1.61009]
[1732049208830,3.21953,3106.1,3105.5,1.61003]
[1732049209663,3.21938,3106.2,3105.6,1.60996]
[1732049209868,3.21911,3106.5,3105.7,0.294]
[1732049210072,3.21919,3106.4,3105.8,1.60987]
[1732049210428,3.21887,3106.7,3106.0,1.60975]
[1732049210628,6.899899,3106.7,3106.0,1.60975]
[1732049210824,3.680959,3106.7,3106.0,3.21949]
[1732049211068,3.680959,3106.7,3105.7,0.294]
[1732049211069,0.462089,3106.7,3106.1,1.60971]
[1732049211318,3.977,3106.9,3106.1,1.60971]
[1732049211492,3.21886,3106.7,3106.1,3.21941]
[1732049211768,3.21886,3106.7,3105.7,1.90392]
[1732049211769,3.21911,3106.5,3105.9,1.60981]
[1732049212069,3.938486,3106.7,3105.9,1.60981]
[1732049212367,3.938486,3106.7,3106.1,1.60969]
[1732049213234,3.938516,3106.7,3105.9,1.60979]
[1732049213464,3.21975,3105.9,3105.4,0.294]
[1732049213658,4.01976,3106.4,3105.4,0.294]
[1732049213659,3.21951,3106.1,3105.4,1.90406]
[1732049213859,3.21974,3105.9,3105.4,0.294]
[1732049214469,3.68106389,3106.3,3105.5,1.61004]
[1732049214680,0.74816639,3106.2,3105.4,0.294]
[1732049214972,3.22017,3105.5,3105.1,0.294]
[1732049215280,3.22011,3105.5,3105.1,0.294]
[1732049215769,3.21998,3105.6,3105.4,1.759445]
[1732049215969,0.8006,3105.7,3105.4,1.759445]
[1732049216182,3.21985,3105.8,3105.4,1.759445]
[1732049217483,3.21991,3105.7,3105.4,1.759445]
[1732049217679,3.22006,3105.6,3105.4,1.759445]
[1732049219149,3.22009,3105.5,3105.4,1.759445]
[1732049219340,3.864105,3105.5,3105.4,1.759445]
[1732049219760,3.22009,3105.5,3105.4,1.759445]
[1732049220276,3.21997,3105.7,3105.4,1.759445]
[1732049220649,3.22009,3105.5,3105.4,1.759445]
[1732049220987,4.01939,3105.5,3105.4,1.759445]
[1732049222256,3.21968,3105.9,3105.4,1.759445]
[1732049222257,0.7993,3105.8,3105.4,1.759445]
[1732049222560,3.81693894,3106.5,3105.4,1.759445]
[1732049222561,0.7993,3106.6,3105.5,1.61004]
[1732049222735,3.21922,3106.4,3105.8,1.60987]
[1732049222940,3.21927,3106.3,3105.6,0.294]
[1732049223131,3.21991,3105.7,3105.4,1.759445]
[1732049223332,3.22009,3105.5,3105.4,1.759445]
[1732049224274,4.01939,3105.5,3105.4,1.759445]
[1732049224575,7.01939,3105.5,3105.4,1.759445]
[1732049224872,6.22009,3105.5,3105.4,1.759445]
[1732049225081,7.96339,3105.5,3105.4,1.759445]
[1732049225438,8.8105868,3105.5,3105.4,1.759445]
[1732049225949,8.51339,3105.5,3105.4,1.759445]
[1732049226587,8.51339,3105.5,3104.3,30.0]
[1732049226588,4.02403,3104.4,3104.3,30.0]
[1732049226906,7.02403,3104.4,3104.3,30.0]
[1732049227484,7.02403,3104.4,3104.3,4.51167819]
[1732049227652,7.02403,3104.4,3102.3,0.7745]
[1732049227653,3.22281,3102.9,3102.3,0.7745]
[1732049227852,3.0,3102.8,3102.0,1.61186]
[1732049228080,0.7673,3103.2,3101.8,0.7745]
[1732049228403,3.22263,3103.1,3101.8,0.7745]
[1732049228690,3.98988,3103.2,3102.5,1.61159]
[1732049228691,3.2225,3103.2,3102.5,1.61159]
[1732049228859,3.22229,3103.4,3102.3,1.61169]
[1732049229049,3.22237,3103.3,3102.6,1.61154]
[1732049229247,3.22207,3103.6,3102.7,1.772634]
[1732049229455,3.0,3103.7,3102.5,1.61159]
[1732049229685,6.22237,3103.4,3102.6,0.161159]
[1732049230001,3.2224,3103.3,3102.6,1.6115]
[1732049230199,3.2224,3103.3,3102.7,0.16115]
[1732049230371,3.0,3103.4,3102.2,1.61174]
[1732049230574,3.22258,3103.1,3102.2,1.61172]
[1732049230817,3.22258,3103.1,3102.1,0.7745]
[1732049230818,4.01548,3103.2,3102.6,1.61153]
[1732049231114,3.0,3103.3,3102.6,1.61153]
[1732049231419,3.0,3103.3,3102.7,0.161153]
[1732049232012,6.22245,3103.3,3102.7,0.161153]
[1732049232163,6.22238,3103.3,3102.7,1.772643]
[1732049232362,3.22251,3103.2,3102.5,1.61158]
[1732049232874,3.22251,3103.2,3102.2,1.61174]
[1732049233065,3.0,3103.3,3102.2,0.238631]
[1732049233261,3.0,3103.3,3101.0,0.00808081]
[1732049233262,3.0,3102.9,3101.0,0.00808081]
[1732049233500,3.22372,3102.0,3101.3,1.61219]
[1732049233699,3.22382,3102.0,3101.2,1.61227]
[1732049233905,3.22382,3102.0,3101.3,0.322455]
[1732049234216,3.23389,3101.9,3101.0,0.00808081]
[1732049234359,3.0,3101.5,3101.0,0.00808081]
[1732049234566,3.22419,3101.6,3101.0,0.00808081]
[1732049234766,3.22443,3101.4,3101.0,0.00808081]
[1732049235074,3.546873,3101.4,3101.0,0.00808081]
[1732049235303,3.22466,3101.1,3101.0,0.00808081]
[1732049235461,7.00406,3101.1,3101.0,0.00808081]
[1732049235661,4.00406,3101.1,3101.0,0.00808081]
[1732049235860,3.0,3101.1,3101.0,0.00808081]
[1732049236109,3.22454,3101.3,3101.0,0.00808081]
[1732049236263,3.0,3101.3,3101.0,0.00808081]
[1732049236463,3.22462,3101.2,3101.0,0.00808081]
[1732049236664,3.0,3101.3,3101.0,0.00808081]
[1732049236888,0.400375,3101.3,3101.0,0.00808081]
[1732049237488,4.00443,3102.0,3101.1,1.93475]
[1732049237834,0.7807,3102.0,3101.4,1.93459]
[1732049237966,3.22383,3101.9,3101.0,0.00808081]
[1732049238303,3.22442,3101.4,3101.0,0.00808081]
[1732049238683,3.22417,3101.6,3101.0,0.00808081]
[1732049239008,3.0,3101.7,3101.0,1.94289081]
[1732049239207,3.84662,3101.6,3101.0,0.00808081]
[1732049239368,3.22393,3101.8,3101.0,0.00808081]
[1732049239717,4.00445,3102.0,3101.3,1.93464]
[1732049239881,0.400445,3101.9,3101.4,1.93456]
[1732049240062,0.7807,3102.0,3101.4,1.93456]
[1732049240266,0.7807,3102.0,3101.1,0.8105]
[1732049240267,0.7807,3102.0,3101.6,1.93445]
[1732049240505,0.7555,3102.3,3101.5,1.93449]
[1732049240666,3.22359,3102.2,3101.5,1.93449]
[1732049240861,0.7555,3102.3,3101.1,2.74525]
[1732049241087,0.7555,3102.3,3101.5,1.93452]
[1732049241290,3.22368,3102.1,3101.5,1.93452]
[1732049241569,0.7555,3102.3,3101.1,2.74529]
[1732049241741,3.2239,3101.9,3101.1,0.8105]
[1732049241943,3.22383,3101.9,3101.3,1.93465]
[1732049242139,3.22394,3101.8,3101.3,1.93465]
[1732049242341,3.868717,3101.8,3101.3,1.93465]
[1732049242547,3.22394,3101.8,3101.1,2.74526]
[1732049242786,3.2241,3101.7,3101.1,2.74523]
[1732049242989,3.622372,3101.9,3101.2,1.93473]
[1732049243149,0.7555,3102.3,3102.0,1.93422]
[1732049243342,3.22312,3102.6,3102.0,1.93422]
[1732049243648,3.22298,3102.8,3102.2,1.9341]
[1732049243849,6.44597,3102.8,3102.2,1.9341]
[1732049244154,1.094762,3103.0,3101.7,1.93441]
[1732049244155,3.22342,3102.3,3101.7,1.93441]
[1732049244368,3.99492,3102.3,3101.7,1.93437]
[1732049244572,3.99498,3102.3,3101.4,1.93461]
[1732049244781,0.399492,3102.2,3101.6,1.93448]
[1732049244966,0.399492,3102.2,3101.3,0.8191]
[1732049244967,3.22365,3102.1,3101.3,0.8191]
[1732049245171,3.224,3101.8,3101.3,0.8191]
[1732049245369,3.2239,3101.9,3101.3,2.75375]
[1732049245674,3.6630772,3102.1,3101.3,0.8191]
[1732049245879,0.36630972,3102.0,3101.4,1.93455]
[1732049246187,0.36630972,3102.0,3101.3,0.8191]
[1732049246387,3.99494,3102.3,3101.7,1.93438]
[1732049246388,0.7715,3102.3,3101.7,1.93438]
[1732049246590,3.0,3102.2,3101.8,1.93435]
[1732049246765,0.7715,3102.3,3101.7,1.93438]
[1732049246960,1.470977,3102.3,3101.7,1.93438]
[1732049247271,3.0,3102.2,3101.7,1.93438]
[1732049247474,0.7715,3102.3,3101.9,1.93429]
[1732049247680,0.7713,3102.6,3101.8,0.7791]
[1732049247868,3.22329,3102.5,3101.8,1.93435]
[1732049248067,3.99441,3102.6,3102.0,1.93419]
[1732049248264,4.393842,3102.6,3102.0,1.93419]
[1732049248454,1.170732,3102.6,3102.1,1.93415]
[1732049248663,4.170732,3102.6,3102.0,1.93419]
[1732049249016,0.7713,3102.6,3101.8,1.93432]
[1732049249188,3.22338,3102.4,3101.8,1.93432]
[1732049249488,3.622798,3102.4,3101.6,1.93446]
[1732049249798,3.22368,3102.1,3101.5,0.7791]
[1732049249961,0.399468,3102.4,3101.2,0.7762]
[1732049250167,3.22419,3101.6,3101.0,0.00808081]
[1732049250386,3.22431,3101.5,3101.0,0.00808081]
[1732049250585,3.22448,3101.3,3101.0,0.00808081]
[1732049250897,3.22466,3101.1,3101.0,0.00808081]
[1732049251249,0.322448,3101.2,3101.0,0.00808081]
[1732049251650,3.0,3101.3,3101.0,0.00808081]
[1732049251850,3.22453,3101.3,3101.0,0.00808081]
[1732049252294,3.22466,3101.1,3101.0,0.00808081]
[1732049252808,4.05276,3101.1,3101.0,0.00808081]
[1732049253301,4.34817227,3101.1,3101.0,0.00808081]
[1732049253510,4.05276,3101.1,3101.0,0.00808081]
[1732049254004,0.8281,3101.1,3101.0,0.00808081]
[1732049254226,3.0,3101.3,3101.0,0.00808081]
[1732049254501,3.22457,3101.2,3101.0,0.00808081]
[1732049254886,3.22466,3101.1,3101.0,0.00808081]
[1732049255797,0.622439,3101.2,3101.0,0.00808081]
[1732049256018,3.847069,3101.2,3101.0,0.00808081]
[1732049256164,3.52082677,3101.1,3101.0,0.00808081]
[1732049256361,0.29616677,3101.1,3101.0,0.00808081]
[1732049256566,3.52082677,3101.1,3101.0,0.00808081]
[1732049257265,4.55760035,3101.1,3101.0,0.00808081]
[1732049257502,7.8741878,3101.1,3101.0,0.00808081]
[1732049257912,8.35160035,3101.1,3101.0,0.00808081]
[1732049259890,8.05543358,3101.1,3101.0,0.00808081]
[1732049260096,3.0,3101.1,3101.0,0.00808081]
[1732049260318,4.01829,3101.5,3101.0,1.94293081]
[1732049260501,0.31711394,3101.3,3101.0,0.00808081]
[1732049260809,3.22435,3101.4,3101.0,0.00808081]
[1732049261321,0.31711394,3101.4,3101.0,0.00808081]
[1732049261736,0.31711394,3101.5,3101.0,1.94293081]
[1732049261889,0.31711394,3101.6,3101.0,2.33122289]
[1732049262433,0.31711394,3101.5,3101.0,2.33122289]
[1732049262656,0.31711394,3101.5,3101.4,1.93461]
[1732049262804,0.31711394,3101.7,3101.3,1.93463]
[1732049263008,3.54113394,3101.8,3101.2,2.71722]
[1732049263221,0.31711394,3101.7,3101.3,1.93463]
[1732049263393,0.31711394,3101.7,3101.4,1.9346]
[1732049263713,0.31711394,3101.6,3101.2,1.05503008]
[1732049263913,0.31711394,3101.6,3101.4,1.93461]
[1732049264133,0.31711394,3101.7,3101.5,1.93454]
[1732049264289,0.31711394,3101.7,3101.6,1.93448]
[1732049264788,0.31711394,3101.9,3101.6,1.93448]
[1732049264990,0.31711394,3101.8,3101.7,1.9344]
[1732049265187,0.31711394,3101.9,3101.7,3.86878]
[1732049265518,0.31711394,3102.0,3101.7,3.86875]
[1732049265827,0.31711394,3102.1,3101.7,3.86875]
[1732049266065,0.31711394,3102.1,3101.9,1.93426]
[1732049266350,0.31711394,3102.7,3102.6,1.93386]
[1732049266505,0.31711394,3103.0,3102.4,1.93394]
[1732049266833,0.31711394,3102.9,3102.0,0.7624]
[1732049267127,3.22332,3102.4,3101.7,2.70847]
[1732049267426,0.31711394,3102.2,3101.7,0.7741]
[1732049267627,0.31711394,3102.3,3101.7,0.7741]
[1732049267852,4.30716394,3102.5,3101.9,1.93425]
[1732049268012,0.399005,3102.4,3101.9,1.93425]
[1732049268436,3.22332,3102.4,3101.7,4.64288]
[1732049268756,3.54043394,3102.4,3101.8,1.93435]
[1732049268903,0.35404339,3102.3,3101.8,1.93435]
[1732049269112,0.31711394,3102.5,3101.9,1.93425]
[1732049269321,0.31711394,3102.6,3101.7,0.7741]
[1732049269648,3.81693894,3103.4,3102.4,1.93397]
[1732049269649,3.53991394,3102.9,3102.4,1.93397]
[1732049269855,3.2228,3102.9,3102.4,1.93397]
[1732049270153,1.08391394,3103.1,3102.1,1.93417]
[1732049270361,3.22285,3102.9,3102.3,1.93403]
[1732049270663,3.22285,3102.9,3102.1,1.93414]
[1732049270815,3.22285,3102.9,3102.3,3.86803]
[1732049271015,0.31711394,3103.1,3102.6,1.93382]
[1732049271271,3.2225,3103.2,3102.7,1.93379]
[1732049271427,0.3,3103.1,3102.7,1.93379]
[1732049271627,0.3,3103.1,3102.5,1.93387]
[1732049271628,3.52258,3103.1,3102.5,1.93387]
[1732049271834,0.674508,3103.0,3102.5,1.93387]
[1732049272166,3.22307,3102.7,3101.9,1.93424]
[1732049272401,3.22299,3102.7,3101.8,0.7741]
[1732049272666,3.22399,3101.8,3101.0,0.00808081]
[1732049272849,6.9905,3102.1,3101.4,1.93454]
[1732049273050,3.22373,3102.0,3101.4,1.93454]
[1732049273360,1.021423,3101.9,3101.2,1.93468]
[1732049273533,1.021423,3101.9,3101.3,1.93466]
[1732049274067,1.021423,3101.9,3101.4,1.9346]
[1732049274222,1.021423,3101.9,3101.2,0.7741]
[1732049274423,3.22351,3102.3,3101.6,1.93444]
[1732049274619,0.322299,3102.6,3101.7,0.7741]
[1732049274963,0.7668,3102.7,3101.7,0.7741]
[1732049275156,0.7668,3102.7,3101.9,1.93428]
[1732049275157,3.22322,3102.5,3101.9,1.93428]
[1732049275391,0.721311,3102.5,3102.0,1.93423]
[1732049275534,3.22344,3102.3,3101.7,1.93437]
[1732049276223,3.2237,3102.1,3101.3,0.8064]
[1732049276421,3.624754,3102.3,3101.6,1.93444]
[1732049276684,0.4413854,3102.2,3101.7,1.9344]
[1732049276863,0.7891,3102.4,3102.0,1.93422]
[1732049277160,3.22321,3102.5,3102.0,1.93422]
[1732049277373,0.644625,3102.5,3102.0,3.8684]
[1732049277551,3.2231,3102.6,3102.0,1.93418]
[1732049277747,0.8218,3102.8,3101.9,0.8027]
[1732049277930,0.8077,3103.2,3102.7,1.93377]
[1732049278265,0.8077,3103.5,3102.6,0.7838]
[1732049278474,0.8077,3103.5,3101.7,0.01]
[1732049278475,3.22259,3103.1,3102.4,1.93394]
[1732049279069,3.22259,3103.1,3102.5,1.93391]
[1732049279560,3.22271,3103.0,3102.4,1.93397]
[1732049279724,0.322259,3103.1,3102.6,1.93383]
[1732049279920,3.55,3103.4,3102.4,1.93394]
[1732049280121,3.22255,3103.2,3102.5,1.93388]
[1732049280316,0.55,3103.4,3102.5,1.93388]
[1732049280317,3.22265,3103.1,3102.5,1.93388]
[1732049280560,0.55,3103.4,3102.3,1.93403]
[1732049280866,3.22275,3103.0,3102.4,1.93394]
[1732049281022,0.322275,3102.9,3102.5,1.93391]
[1732049281221,3.0,3103.3,3102.6,1.93381]
[1732049281460,0.38077,3103.3,3102.2,0.7838]
[1732049281693,3.22191,3103.8,3103.1,1.93349]
[1732049281822,3.22191,3103.8,3103.2,1.93347]
[1732049282021,3.22191,3103.8,3103.0,0.7762]
[1732049282242,0.7786,3103.9,3103.0,0.7762]
[1732049282462,3.222,3103.7,3103.0,0.7762]
[1732049282619,0.7786,3103.9,3103.2,1.93348]
[1732049282819,3.0,3103.7,3103.2,1.93348]
[1732049283143,3.700045,3103.7,3103.1,1.93353]
[1732049283472,0.700045,3103.7,3103.1,1.93353]
[1732049283682,0.700045,3103.7,3103.0,0.7762]
[1732049283967,3.7786,3103.9,3103.4,1.93336]
[1732049284528,3.22147,3104.2,3103.6,1.9332]
[1732049284754,3.543757,3104.1,3103.4,1.93336]
[1732049284948,3.543757,3104.1,3103.5,1.93328]
[1732049285764,3.0,3104.0,3103.5,1.93324]
[1732049285983,0.6543757,3103.9,3103.5,1.93328]
[1732049286262,0.6543757,3103.9,3103.4,1.93331]
[1732049286645,0.322147,3104.1,3103.6,1.93323]
[1732049286975,0.322147,3104.1,3103.4,1.93331]
[1732049286976,3.543717,3104.1,3103.4,1.93331]
[1732049287285,3.2226,3103.1,3101.6,0.7719]
[1732049287565,3.2226,3103.1,3101.9,1.93429]
[1732049287566,3.22259,3103.1,3101.9,1.93429]
[1732049287866,0.32226,3103.0,3102.5,1.93391]
[1732049288052,0.32226,3103.0,3102.2,1.93406]
[1732049288229,3.2225,3103.2,3102.2,1.93406]
[1732049288430,3.22279,3102.9,3102.2,1.93406]
[1732049288629,3.22296,3102.8,3102.1,1.93416]
[1732049288872,3.22312,3102.6,3102.0,1.93421]
[1732049289182,4.04812,3102.6,3101.9,1.93429]
[1732049289355,4.04812,3102.6,3101.7,2.74419]
[1732049289356,0.322312,3102.5,3102.1,1.93414]
[1732049289563,0.322312,3102.5,3101.9,1.93424]
[1732049289879,0.322312,3102.5,3101.9,3.8685]
[1732049290033,0.322312,3102.5,3102.0,1.93419]
[1732049290232,0.322312,3102.5,3102.1,1.93412]
[1732049290429,0.322312,3102.5,3102.1,1.93413]
[1732049290668,0.322312,3102.5,3102.2,1.93407]
[1732049290971,0.322312,3102.5,3101.7,2.74419]
[1732049290972,0.322312,3102.5,3102.0,3.86841]
[1732049291178,3.545582,3102.5,3101.7,2.74417]
[1732049291356,0.322312,3102.5,3102.0,1.93421]
[1732049291530,0.3545582,3102.4,3102.0,1.93421]
[1732049291878,0.3545582,3102.4,3102.0,1.9342]
[1732049292233,0.322312,3102.5,3102.2,1.9341]
[1732049292580,0.823,3103.2,3102.7,1.93376]
[1732049292731,4.04553,3103.2,3102.7,1.93378]
[1732049293072,0.404553,3103.1,3102.8,1.9337]
[1732049293252,3.22233,3103.4,3102.8,1.9337]
[1732049293454,3.22233,3103.4,3102.7,1.93375]
[1732049293657,3.22255,3103.2,3102.6,1.93385]
[1732049293969,0.404533,3103.3,3102.5,0.7571]
[1732049294146,4.0452,3103.5,3102.8,1.93368]
[1732049294347,3.22254,3103.2,3102.6,1.93382]
[1732049294682,3.0,3103.3,3102.6,1.93383]
[1732049294884,0.622233,3103.2,3102.8,1.93369]
[1732049295380,3.22251,3103.2,3102.6,1.9338]
[1732049295546,6.22238,3103.3,3102.6,1.9338]
[1732049295745,3.22249,3103.2,3102.7,1.93375]
[1732049295951,3.844728,3103.2,3102.7,1.93375]
[1732049296366,0.622238,3103.2,3102.7,1.93375]
[1732049296573,0.622238,3103.2,3102.5,0.7571]
[1732049296574,3.22258,3103.2,3102.5,2.69098]
[1732049296739,6.44554,3103.0,3102.3,1.93401]
[1732049296935,6.44554,3103.0,3102.3,3.86802]
[1732049297167,3.2228,3102.9,3102.3,3.86801]
[1732049297369,3.22276,3103.0,3102.4,1.93398]
[1732049297567,3.544768,3103.2,3102.1,2.69145]